fUSD/lending_fUSD_20240616
["ID","MTS","AMOUNT","RATE_DAILY","PERIOD"]
[329608945,1718502647392,-2223.38027,0.0001916,2]
[329608946,1718502647408,-555.62389931,0.00019178,2]
[329608947,1718502647425,-230.13659159,0.00019178,2]
[329608948,1718502647449,-201.4162079,0.00019178,2]
[329608949,1718502647468,-343.059552,0.00019192,2]
[329608950,1718502647496,-3242.142319,0.00019192,2]
[329608951,1718502647512,-1959.199718,0.00019192,2]
[329608952,1718502647533,-190.820786,0.00019192,2]
[329608953,1718502647561,-187.274551,0.00019192,2]
[329608954,1718502647572,-215.199623,0.00019192,2]
[329608955,1718502647585,-288.0,0.0001929,2]
[329608956,1718502647599,-188.21120639,0.00019349,2]
[329608957,1718502647610,-847.23478493,0.00019349,2]
[329608958,1718502647622,-410.15336846,0.00019349,2]
[329608959,1718502647635,-196.38645359,0.00019349,2]
[329608960,1718502647649,-3038.1611317,0.00019349,2]
[329608961,1718502647673,-2159.89283519,0.0001935,2]
[329608962,1718502647685,-19712.22945527,0.00019351,2]
[329608963,1718502647698,-35018.3906703,0.00019351,2]
[329608964,1718502647718,-1043.72873983,0.00019351,2]
[329608965,1718502647730,-2440.17355454,0.00019351,2]
[329608966,1718502647746,-691.20012441,0.00019351,2]
[329608967,1718502647760,-1048.34273564,0.00019351,2]
[329608968,1718502647788,-1175.653359,0.00019429,2]
[329608969,1718502647807,-343.059552,0.00019429,2]
[329608970,1718502647823,-3242.142319,0.00019429,2]
[329608971,1718502647834,-1959.199718,0.00019429,2]
[329608972,1718502647848,-190.820786,0.00019429,2]
[329608973,1718502647874,-187.274551,0.00019429,2]
[329608974,1718502647902,-215.199623,0.00019429,2]
[329608975,1718502647922,-771.0,0.00019538,2]
[329608976,1718502647963,-151.0,0.00019551,2]
[329608977,1718502647979,-185.525887,0.00019607,2]
[329608978,1718502647999,-1175.653359,0.00019666,2]
[329608979,1718502648017,-343.059552,0.00019666,2]
[329608980,1718502648051,-3242.142319,0.00019666,2]
[329608981,1718502648074,-1959.199718,0.00019666,2]
[329608982,1718502648099,-190.820786,0.00019666,2]
[329608983,1718502648125,-187.274551,0.00019666,2]
[329608984,1718502648141,-215.199623,0.00019666,2]
[329608985,1718502648157,-241.69449441,0.00019729,2]
[329608986,1718502648188,-331.345,0.00019835,2]
[329608987,1718502648208,-1175.653359,0.00019903,2]
[329608988,1718502648225,-343.059552,0.00019903,2]
[329608989,1718502648241,-184.206161,0.00019903,2]
[329608990,1718502648275,-3242.142319,0.00019903,2]
[329608991,1718502648297,-1959.199718,0.00019903,2]
[329608992,1718502648343,-190.820786,0.00019903,2]
[329608993,1718502648372,-187.274551,0.00019903,2]
[329608994,1718502648392,-215.199623,0.00019903,2]
[329608995,1718502648414,-291.23614454,0.00019998,2]
[329608996,1718502648428,-411.05192923,0.00019999,2]
[329608997,1718502648441,-155.0,0.0002,2]
[329608998,1718502648456,-865.86350875,0.0002,2]
[329608999,1718502648471,-6269.45372724,0.0002,2]
[329609000,1718502648486,-155.0,0.0002,2]
[329609001,1718502648512,-187.74893441,0.0002,2]
[329609002,1718502648543,-3897.73390955,0.0002,2]
[329609003,1718502648567,-1782.31988206,0.0002,2]
[329609004,1718502648587,-155.0,0.0002,2]
[329609005,1718502648606,-172.11110283,0.0002,2]
[329609006,1718502648619,-231.81241807,0.0002,2]
[329609007,1718502648672,-20955.27348101,0.0002,2]
[329609008,1718502648685,-364.81645495,0.0002,2]
[329609009,1718502648704,-1000.0,0.0002,2]
[329609010,1718502648735,-226.79813277,0.000201,2]
[329609011,1718502648750,-151.0,0.0002033,2]
[329609012,1718502648779,-360.17,0.0002034,2]
[329609013,1718502648792,-526.95,0.0002034,2]
[329609014,1718502648828,-353.81,0.0002034,2]
[329609015,1718502648860,-526.95,0.0002034,2]
[329609016,1718502648880,-707.48,0.0002034,2]
[329609017,1718502648901,-423.1,0.0002034,2]
[329609018,1718502648916,-581.0,0.00020376,2]
[329609019,1718502648929,-4824.74006768,0.00020418,2]
[329609020,1718502648943,-185.525887,0.00020587,2]
[329609021,1718502648960,-288.0,0.0002073,2]
[329609022,1718502648985,-157.0,0.000208,5]
[329609023,1718502649001,-3721.285,0.00020908,2]
[329609024,1718502649017,-1250.0,0.00021,2]
[329609025,1718502649048,-630.71,0.00021053,2]
[329609026,1718502649091,-202.011918,0.000211,2]
[329609027,1718502649111,-151.0,0.00021108,2]
[329609028,1718502649140,-526.95,0.00021162,2]
[329609029,1718502649168,-423.1,0.00021162,2]
[329609030,1718502649184,-353.81,0.00021162,2]
[329609031,1718502649203,-526.95,0.00021162,2]
[329609032,1718502649227,-526.95,0.00021162,2]
[329609033,1718502649242,-423.1,0.00021162,2]
[329609034,1718502649288,-423.1,0.00021162,2]
[329609035,1718502649305,-526.95,0.00021162,2]
[329609036,1718502649324,-423.1,0.00021162,2]
[329609037,1718502649341,-526.95,0.00021162,2]
[329609038,1718502649361,-374.32,0.00021162,2]
[329609039,1718502649381,-526.95,0.00021162,2]
[329609040,1718502649398,-353.81,0.00021162,2]
[329609041,1718502649412,-706.64,0.00021162,2]
[329609042,1718502649427,-526.95,0.00021162,2]
[329609043,1718502649447,-526.95,0.00021162,2]
[329609044,1718502649465,-526.95,0.00021162,2]
[329609045,1718502649479,-536.15,0.00021162,2]
[329609046,1718502649492,-526.95,0.00021162,2]
[329609047,1718502649506,-776.32,0.00021179,2]
[329609048,1718502649542,-1000.0,0.00021459,2]
[329609049,1718502649584,-2223.38027,0.0002166,2]
[329609050,1718502649602,-972.6873,0.00021716,2]
[329609051,1718502649615,-411.3243,0.00021716,2]
[329609052,1718502649628,-1101.26,0.00021757,2]
[329609053,1718502649647,-4824.74006768,0.00021798,2]
[329609054,1718502649660,-10000.0,0.00021817,2]
[329609055,1718502649674,-1000.0,0.00021817,2]
[329609056,1718502649691,-4653.80575262,0.00021817,2]
[329609057,1718502649704,-176.67602602,0.00021817,2]
[329609058,1718502649720,-334.31244291,0.00021817,2]
[329609059,1718502649739,-1025.43008317,0.00021817,2]
[329609060,1718502649756,-193.83812567,0.00021817,2]
[329609061,1718502649769,-160.50486433,0.00021817,4]
[329609062,1718502649783,-11754.84364196,0.00021817,2]
[329609063,1718502649803,-228.67,0.00021884,15]
[329609064,1718502649840,-404.0,0.00021884,15]
[329609065,1718502649854,-986.0,0.00021884,15]
[329609066,1718502649875,-150.5,0.00021885,15]
[329609067,1718502649913,-151.0,0.00021887,2]
[329609068,1718502649937,-404.0,0.00021894,15]
[329609069,1718502649955,-986.0,0.00021894,15]
[329609070,1718502649977,-150.5,0.00021895,15]
[329609071,1718502649993,-150.5,0.00021895,15]
[329609072,1718502650018,-979.0,0.000219,4]
[329609073,1718502650037,-404.0,0.00021904,15]
[329609074,1718502650051,-986.0,0.00021904,15]
[329609075,1718502650071,-150.5,0.00021905,15]
[329609076,1718502650097,-150.5,0.00021905,15]
[329609077,1718502650112,-3568419.19177522,0.00021914,2]
[329609078,1718502650137,-500.0,0.00021917,2]
[329609079,1718502650153,-500.0,0.00021917,2]
[329609080,1718502650171,-477.05359847,0.00021917,2]
[329609081,1718502650185,-500.0,0.00021917,2]
[329609082,1718502650210,-500.0,0.00021917,2]
[329609083,1718502650231,-500.0,0.00021917,2]
[329609084,1718502650255,-500.41105769,0.00021917,2]
[329609085,1718502650290,-500.0,0.00021917,2]
[329609086,1718502650308,-500.0,0.00021917,2]
[329609087,1718502650323,-500.0,0.00021917,2]
[329609088,1718502650338,-500.0,0.00021917,2]
[329609089,1718502650351,-500.0,0.00021917,2]
[329609090,1718502650365,-371.0257025,0.00021917,2]
[329609092,1718502650383,-500.0,0.00021917,2]
[329609094,1718502650401,-500.0,0.00021917,2]
[329609096,1718502650417,-504.60772326,0.00021917,2]
[329609097,1718502650448,-503.2897521,0.00021917,2]
[329609098,1718502650474,-396.36907483,0.00021917,2]
[329609099,1718502650500,-566.65045017,0.00021917,2]
[329609100,1718502650512,-502.25719631,0.00021917,2]
[329609101,1718502650528,-514.30786714,0.00021917,2]
[329609102,1718502650541,-573.36448527,0.00021917,2]
[329609103,1718502650572,-499.04605174,0.00021917,2]
[329609104,1718502650616,-200.0,0.00021917,2]
[329609105,1718502650630,-500.0,0.00021917,2]
[329609106,1718502650647,-500.15424504,0.00021917,2]
[329609107,1718502650661,-500.0,0.00021917,2]
[329609108,1718502650676,-500.0,0.00021917,2]
[329609109,1718502650692,-502.1310488,0.00021917,2]
[329609110,1718502650736,-500.0,0.00021917,2]
[329609111,1718502650755,-501.70208739,0.00021917,2]
[329609112,1718502650769,-500.0,0.00021917,2]
[329609113,1718502650782,-518.58457445,0.00021917,2]
[329609114,1718502650796,-500.0,0.00021917,2]
[329609115,1718502650811,-528.20165035,0.00021917,2]
[329609116,1718502650836,-500.0,0.00021917,2]
[329609117,1718502650873,-406.91974295,0.00021917,2]
[329609118,1718502650901,-500.0,0.00021917,2]
[329609119,1718502650918,-176.89402062,0.00021917,2]
[329609120,1718502650949,-571.97946593,0.00021917,2]
[329609121,1718502650975,-589.08,0.00021917,2]
[329609122,1718502650998,-500.0,0.00021917,2]
[329609123,1718502651021,-500.0,0.00021917,2]
[329609124,1718502651038,-566.33540384,0.00021917,2]
[329609125,1718502651078,-500.0,0.00021917,2]
[329609126,1718502651150,-500.0,0.00021917,2]
[329609127,1718502651165,-500.0,0.00021917,2]
[329609128,1718502651188,-500.0,0.00021917,2]
[329609129,1718502651203,-500.0,0.00021917,2]
[329609130,1718502651219,-500.0,0.00021917,2]
[329609131,1718502651256,-500.0,0.00021917,2]
[329609132,1718502651274,-500.0,0.00021917,2]
[329609133,1718502651310,-500.0,0.00021917,2]
[329609134,1718502651329,-500.0,0.00021917,2]
[329609135,1718502651346,-500.0,0.00021917,2]
[329609136,1718502651360,-540.15841816,0.00021917,2]
[329609137,1718502651373,-500.0,0.00021917,2]
[329609138,1718502651388,-500.0,0.00021917,2]
[329609139,1718502651402,-500.0,0.00021917,2]
[329609140,1718502651430,-500.0,0.00021917,2]
[329609141,1718502651445,-500.0,0.00021917,2]
[329609142,1718502651469,-500.0,0.00021917,2]
[329609143,1718502651509,-242.48585244,0.00021917,2]
[329609144,1718502651524,-500.0,0.00021917,2]
[329609145,1718502651539,-539.81514399,0.00021917,2]
[329609146,1718502651557,-500.0,0.00021917,2]
[329609147,1718502651571,-575.15381217,0.00021917,2]
[329609148,1718502651589,-500.0,0.00021917,2]
[329609149,1718502651608,-611.00999257,0.00021917,2]
[329609150,1718502651624,-500.0,0.00021917,2]
[329609151,1718502651639,-500.0,0.00021917,2]
[329609152,1718502651658,-500.0,0.00021917,2]
[329609153,1718502651670,-500.0,0.00021917,2]
[329609154,1718502651685,-500.0,0.00021917,2]
[329609155,1718502651698,-500.0,0.00021917,2]
[329609156,1718502651712,-500.0,0.00021917,2]
[329609157,1718502651740,-500.0,0.00021917,2]
[329609158,1718502651761,-500.0,0.00021917,2]
[329609159,1718502651778,-500.0,0.00021917,2]
[329609160,1718502651794,-500.0,0.00021917,2]
[329609161,1718502651812,-500.0,0.00021917,2]
[329609162,1718502651844,-501.00552755,0.00021917,2]
[329609163,1718502651866,-500.0,0.00021917,2]
[329609164,1718502651893,-500.0,0.00021917,2]
[329609165,1718502651925,-500.0,0.00021917,2]
[329609166,1718502651964,-500.0,0.00021917,2]
[329609167,1718502652004,-538.67781119,0.00021917,2]
[329609168,1718502652017,-500.0,0.00021917,2]
[329609169,1718502652032,-500.0,0.00021917,2]
[329609170,1718502652046,-500.0,0.00021917,2]
[329609171,1718502652065,-500.0,0.00021917,2]
[329609172,1718502652086,-500.0,0.00021917,2]
[329609173,1718502652109,-500.0,0.00021917,2]
[329609174,1718502652156,-500.0,0.00021917,2]
[329609175,1718502652171,-500.0,0.00021917,2]
[329609176,1718502652186,-500.0,0.00021917,2]
[329609177,1718502652201,-500.0,0.00021917,2]
[329609178,1718502652218,-500.0,0.00021917,2]
[329609179,1718502652232,-500.0,0.00021917,2]
[329609180,1718502652247,-500.0,0.00021917,2]
[329609181,1718502652271,-500.0,0.00021917,2]
[329609182,1718502652288,-500.0,0.00021917,2]
[329609183,1718502652323,-500.0,0.00021917,2]
[329609184,1718502652364,-500.0,0.00021917,2]
[329609185,1718502652385,-503.46266305,0.00021917,2]
[329609186,1718502652406,-500.0,0.00021917,2]
[329609187,1718502652422,-506.29161877,0.00021917,2]
[329609188,1718502652447,-500.0,0.00021917,2]
[329609189,1718502652462,-521.85338886,0.00021917,2]
[329609190,1718502652480,-500.0,0.00021917,2]
[329609191,1718502652495,-508.30596322,0.00021917,2]
[329609192,1718502652516,-500.0,0.00021917,2]
[329609193,1718502652529,-500.0,0.00021917,2]
[329609194,1718502652544,-500.0,0.00021917,2]
[329609195,1718502652559,-500.0,0.00021917,2]
[329609196,1718502652580,-500.0,0.00021917,2]
[329609197,1718502652609,-500.0,0.00021917,2]
[329609198,1718502652630,-504.94056852,0.00021917,2]
[329609199,1718502652646,-500.0,0.00021917,2]
[329609200,1718502652701,-500.0,0.00021917,2]
[329609201,1718502652715,-503.98677154,0.00021917,2]
[329609202,1718502652730,-500.0,0.00021917,2]
[329609203,1718502652759,-858.21,0.00021917,2]
[329609204,1718502652785,-500.0,0.00021917,2]
[329609205,1718502652831,-500.0,0.00021917,2]
[329609206,1718502652866,-500.0,0.00021917,2]
[329609207,1718502652930,-500.0,0.00021917,2]
[329609208,1718502652952,-500.0,0.00021917,2]
[329609209,1718502652969,-500.0,0.00021917,2]
[329609210,1718502652998,-683.13,0.00021917,2]
[329609211,1718502653018,-500.0,0.00021917,2]
[329609212,1718502653038,-500.0,0.00021917,2]
[329609213,1718502653056,-1197.43,0.00021917,2]
[329609214,1718502653070,-500.0,0.00021917,2]
[329609215,1718502653083,-807.25,0.00021917,2]
[329609216,1718502653100,-500.0,0.00021917,2]
[329609217,1718502653113,-527.49,0.00021917,2]
[329609218,1718502653139,-500.0,0.00021917,2]
[329609219,1718502653155,-481.95208765,0.00021917,2]
[329609220,1718502653176,-500.0,0.00021917,2]
[329609221,1718502653207,-550.50843865,0.00021917,2]
[329609222,1718502653225,-500.0,0.00021917,2]
[329609223,1718502653241,-500.0,0.00021917,2]
[329609224,1718502653256,-504.2,0.00021917,2]
[329609225,1718502653273,-500.0,0.00021917,2]
[329609226,1718502653292,-500.0,0.00021917,2]
[329609227,1718502653307,-500.0,0.00021917,2]
[329609228,1718502653332,-500.0,0.00021917,2]
[329609229,1718502653346,-500.0,0.00021917,2]
[329609230,1718502653359,-688.35,0.00021917,2]
[329609231,1718502653372,-500.0,0.00021917,2]
[329609232,1718502653396,-500.0,0.00021917,2]
[329609233,1718502653409,-500.0,0.00021917,2]
[329609234,1718502653437,-500.0,0.00021917,2]
[329609235,1718502653449,-530.82706939,0.00021917,2]
[329609236,1718502653463,-500.0,0.00021917,2]
[329609237,1718502653479,-500.0,0.00021917,2]
[329609238,1718502653491,-500.0,0.00021917,2]
[329609239,1718502653519,-500.0,0.00021917,2]
[329609240,1718502653532,-500.0,0.00021917,2]
[329609241,1718502653546,-500.0,0.00021917,2]
[329609242,1718502653558,-500.0,0.00021917,2]
[329609243,1718502653579,-500.0,0.00021917,2]
[329609244,1718502653593,-500.0,0.00021917,2]
[329609245,1718502653610,-373.12988358,0.00021917,2]
[329609246,1718502653650,-596.91,0.00021917,2]
[329609247,1718502653662,-500.0,0.00021917,2]
[329609248,1718502653680,-500.0,0.00021917,2]
[329609249,1718502653693,-500.0,0.00021917,2]
[329609250,1718502653705,-500.0,0.00021917,2]
[329609251,1718502653720,-500.0,0.00021917,2]
[329609252,1718502653736,-500.0,0.00021917,2]
[329609253,1718502653768,-500.0,0.00021917,2]
[329609254,1718502653784,-500.0,0.00021917,2]
[329609255,1718502653808,-508.73902477,0.00021917,2]
[329609256,1718502653825,-657.34,0.00021917,2]
[329609257,1718502653839,-500.0,0.00021917,2]
[329609258,1718502653851,-501.4124077,0.00021917,2]
[329609259,1718502653864,-503.56666556,0.00021917,2]
[329609260,1718502653880,-500.0,0.00021917,2]
[329609261,1718502653898,-500.0,0.00021917,2]
[329609262,1718502653910,-500.0,0.00021917,2]
[329609263,1718502653926,-500.0,0.00021917,2]
[329609264,1718502653954,-301.08267994,0.00021917,2]
[329609265,1718502653968,-588.84,0.00021917,2]
[329609266,1718502653992,-500.0,0.00021917,2]
[329609267,1718502654005,-500.0,0.00021917,2]
[329609268,1718502654033,-500.0,0.00021917,2]
[329609269,1718502654046,-500.0,0.00021917,2]
[329609270,1718502654059,-500.0,0.00021917,2]
[329609271,1718502654112,-501.7157007,0.00021917,2]
[329609272,1718502654141,-500.0,0.00021917,2]
[329609273,1718502654178,-500.0,0.00021917,2]
[329609274,1718502654207,-500.0,0.00021917,2]
[329609275,1718502654243,-500.0,0.00021917,2]
[329609276,1718502654277,-510.40140858,0.00021917,2]
[329609277,1718502654297,-509.45129156,0.00021917,2]
[329609278,1718502654310,-500.0,0.00021917,2]
[329609279,1718502654326,-500.0,0.00021917,2]
[329609280,1718502654709,-500.0,0.00021917,2]
[329609281,1718502654922,-500.0,0.00021917,2]
[329609282,1718502654953,-500.0,0.00021917,2]
[329609283,1718502655006,-582.58,0.00021917,2]
[329609284,1718502655020,-500.0,0.00021917,2]
[329609285,1718502655038,-500.0,0.00021917,2]
[329609286,1718502655058,-500.0,0.00021917,2]
[329609287,1718502655072,-513.77534547,0.00021917,2]
[329609288,1718502655085,-529.95221174,0.00021917,2]
[329609289,1718502655100,-500.0,0.00021917,2]
[329609290,1718502655114,-500.0,0.00021917,2]
[329609291,1718502655130,-500.0,0.00021917,2]
[329609292,1718502655142,-500.0,0.00021917,2]
[329609293,1718502655195,-500.0,0.00021917,2]
[329609294,1718502655211,-500.0,0.00021917,2]
[329609295,1718502655239,-500.0,0.00021917,2]
[329609296,1718502655252,-500.0,0.00021917,2]
[329609297,1718502655267,-500.0,0.00021917,2]
[329609298,1718502655279,-500.0,0.00021917,2]
[329609299,1718502655301,-500.71583095,0.00021917,2]
[329609300,1718502655316,-500.0,0.00021917,2]
[329609301,1718502655327,-500.0,0.00021917,2]
[329609302,1718502655346,-500.0,0.00021917,2]
[329609303,1718502655370,-500.0,0.00021917,2]
[329609304,1718502655395,-500.0,0.00021917,2]
[329609305,1718502655413,-500.0,0.00021917,2]
[329609306,1718502655425,-500.0,0.00021917,2]
[329609307,1718502655437,-500.0,0.00021917,2]
[329609308,1718502655452,-500.0,0.00021917,2]
[329609309,1718502655467,-502.98234297,0.00021917,2]
[329609310,1718502655482,-500.0,0.00021917,2]
[329609311,1718502655495,-303.48426311,0.00021917,2]
[329609312,1718502655525,-740.49,0.00021917,2]
[329609313,1718502655545,-500.0,0.00021917,2]
[329609314,1718502655563,-192.60937713,0.00021917,2]
[329609315,1718502655574,-500.0,0.00021917,2]
[329609316,1718502655594,-500.0,0.00021917,2]
[329609317,1718502655609,-500.0,0.00021917,2]
[329609318,1718502655640,-500.0,0.00021917,2]
[329609319,1718502655668,-500.0,0.00021917,2]
[329609320,1718502655680,-293.25632665,0.00021917,2]
[329609321,1718502655701,-500.0,0.00021917,2]
[329609322,1718502655713,-500.0,0.00021917,2]
[329609323,1718502655741,-500.0,0.00021917,2]
[329609324,1718502655766,-500.0,0.00021917,2]
[329609325,1718502655784,-500.0,0.00021917,2]
[329609326,1718502655819,-505.05597879,0.00021917,2]
[329609327,1718502655837,-500.0,0.00021917,2]
[329609328,1718502655849,-500.0,0.00021917,2]
[329609329,1718502655861,-500.0,0.00021917,2]
[329609330,1718502655871,-618.80109512,0.00021917,2]
[329609331,1718502655882,-500.34744731,0.00021917,2]
[329609332,1718502655914,-500.0,0.00021917,2]
[329609333,1718502655932,-500.0,0.00021917,2]
[329609334,1718502655960,-500.0,0.00021917,2]
[329609335,1718502655988,-500.0,0.00021917,2]
[329609336,1718502656007,-500.0,0.00021917,2]
[329609337,1718502656022,-510.98664313,0.00021917,2]
[329609338,1718502656054,-500.0,0.00021917,2]
[329609339,1718502656078,-500.0,0.00021917,2]
[329609340,1718502656092,-500.0,0.00021917,2]
[329609341,1718502656119,-503.91401273,0.00021917,2]
[329609342,1718502656130,-500.0,0.00021917,2]
[329609343,1718502656142,-500.0,0.00021917,2]
[329609344,1718502656166,-500.0,0.00021917,2]
[329609345,1718502656177,-500.0,0.00021917,2]
[329609346,1718502656201,-500.0,0.00021917,2]
[329609347,1718502656223,-500.73766519,0.00021917,2]
[329609348,1718502656235,-505.06436051,0.00021917,2]
[329609349,1718502656248,-500.0,0.00021917,2]
[329609350,1718502656262,-500.0,0.00021917,2]
[329609351,1718502656305,-500.0,0.00021917,2]
[329609352,1718502656316,-500.0,0.00021917,2]
[329609353,1718502656332,-500.0,0.00021917,2]
[329609354,1718502656364,-500.0,0.00021917,2]
[329609355,1718502656400,-344.71684684,0.00021917,2]
[329609356,1718502656431,-500.0,0.00021917,2]
[329609357,1718502656443,-500.0,0.00021917,2]
[329609358,1718502656456,-500.0,0.00021917,2]
[329609359,1718502656488,-500.0,0.00021917,2]
[329609360,1718502656499,-500.0,0.00021917,2]
[329609361,1718502656513,-500.0,0.00021917,2]
[329609362,1718502656527,-500.0,0.00021917,2]
[329609363,1718502656550,-500.0,0.00021917,2]
[329609364,1718502656561,-529.09500025,0.00021917,2]
[329609365,1718502656581,-500.0,0.00021917,2]
[329609366,1718502656614,-500.0,0.00021917,2]
[329609367,1718502656632,-500.0,0.00021917,2]
[329609368,1718502656668,-500.0,0.00021917,2]
[329609369,1718502656714,-500.0,0.00021917,2]
[329609370,1718502656739,-500.0,0.00021917,2]
[329609371,1718502656757,-500.0,0.00021917,2]
[329609372,1718502656771,-500.0,0.00021917,2]
[329609373,1718502656791,-500.0,0.00021917,2]
[329609374,1718502656808,-500.0,0.00021917,2]
[329609375,1718502656829,-500.0,0.00021917,2]
[329609376,1718502656859,-500.0,0.00021917,2]
[329609377,1718502656882,-500.0,0.00021917,2]
[329609378,1718502656913,-500.0,0.00021917,2]
[329609379,1718502656941,-500.0,0.00021917,2]
[329609380,1718502656956,-867.66,0.00021917,2]
[329609381,1718502656985,-500.0,0.00021917,2]
[329609382,1718502657022,-339.87129241,0.00021917,2]
[329609383,1718502657036,-201.24571481,0.00021917,2]
[329609384,1718502657053,-731.67,0.00021917,2]
[329609385,1718502657071,-500.0,0.00021917,2]
[329609386,1718502657102,-310.39950481,0.00021917,2]
[329609387,1718502657126,-500.0,0.00021917,2]
[329609388,1718502657143,-838.69,0.00021917,2]
[329609389,1718502657175,-641.13,0.00021917,2]
[329609390,1718502657202,-644.19,0.00021917,2]
[329609391,1718502657218,-500.0,0.00021917,2]
[329609392,1718502657231,-500.0,0.00021917,2]
[329609393,1718502657244,-500.0,0.00021917,2]
[329609394,1718502657262,-560.97,0.00021917,2]
[329609395,1718502657278,-500.0,0.00021917,2]
[329609396,1718502657292,-619.4,0.00021917,2]
[329609397,1718502657312,-500.0,0.00021917,2]
[329609398,1718502657331,-500.0,0.00021917,2]
[329609399,1718502657370,-500.0,0.00021917,2]
[329609400,1718502657397,-500.0,0.00021917,2]
[329609401,1718502657407,-500.0,0.00021917,2]
[329609402,1718502657440,-500.0,0.00021917,2]
[329609403,1718502657464,-500.0,0.00021917,2]
[329609404,1718502657477,-500.0,0.00021917,2]
[329609405,1718502657493,-513.3655188,0.00021917,2]
[329609406,1718502657504,-500.0,0.00021917,2]
[329609407,1718502657516,-500.0,0.00021917,2]
[329609408,1718502657536,-500.0,0.00021917,2]
[329609409,1718502657549,-500.0,0.00021917,2]
[329609410,1718502657562,-500.0,0.00021917,2]
[329609411,1718502657575,-500.0,0.00021917,2]
[329609412,1718502657587,-500.0,0.00021917,2]
[329609413,1718502657608,-500.0,0.00021917,2]
[329609414,1718502657642,-679.13,0.00021917,2]
[329609415,1718502657676,-500.0,0.00021917,2]
[329609416,1718502657688,-500.0,0.00021917,2]
[329609417,1718502657700,-723.8,0.00021917,2]
[329609418,1718502657716,-500.0,0.00021917,2]
[329609419,1718502657753,-500.0,0.00021917,2]
[329609420,1718502657765,-500.0,0.00021917,2]
[329609421,1718502657780,-500.0,0.00021917,2]
[329609422,1718502657804,-500.0,0.00021917,2]
[329609423,1718502657838,-503.91509966,0.00021917,2]
[329609424,1718502657850,-507.20851083,0.00021917,2]
[329609425,1718502657864,-500.0,0.00021917,2]
[329609426,1718502657876,-500.0,0.00021917,2]
[329609427,1718502657894,-836.08,0.00021917,2]
[329609428,1718502657910,-500.0,0.00021917,2]
[329609429,1718502657928,-502.40878604,0.00021917,2]
[329609430,1718502657943,-500.0,0.00021917,2]
[329609431,1718502657959,-500.0,0.00021917,2]
[329609432,1718502657980,-500.0,0.00021917,2]
[329609433,1718502657996,-500.0,0.00021917,2]
[329609434,1718502658025,-500.0,0.00021917,2]
[329609435,1718502658048,-633.04,0.00021917,2]
[329609436,1718502658060,-532.97,0.00021917,2]
[329609437,1718502658078,-808.28,0.00021917,2]
[329609438,1718502658092,-500.0,0.00021917,2]
[329609439,1718502658104,-500.0,0.00021917,2]
[329609440,1718502658121,-500.0,0.00021917,2]
[329609441,1718502658137,-500.0,0.00021917,2]
[329609442,1718502658162,-1316.33,0.00021917,2]
[329609443,1718502658195,-500.0,0.00021917,2]
[329609444,1718502658209,-500.0,0.00021917,2]
[329609445,1718502658228,-500.0,0.00021917,2]
[329609446,1718502658243,-500.0,0.00021917,2]
[329609447,1718502658269,-500.0,0.00021917,2]